bitfinex/quotes_SOLUSD_20250819
["timestamp","ask_amount","ask_price","bid_price","bid_amount"]
[1755632787431,7.8852408,178.31,178.3,0.06]
[1755632788940,7.2252408,178.31,178.3,0.06]
[1755632789766,26.0,178.32,178.3,0.06]
[1755632790075,7.2252408,178.33,178.3,0.06]
[1755632790274,157.66,178.35,178.3,0.06]
[1755632790445,7.2252408,178.34,178.3,0.76]
[1755632790636,157.66,178.35,178.31,0.7]
[1755632790637,33.2252408,178.35,178.31,0.7]
[1755632790836,7.2252408,178.33,178.3,0.06]
[1755632791362,7.2252408,178.33,178.3,0.76]
[1755632792568,7.8852408,178.32,178.3,0.06]
[1755632793279,7.2252408,178.33,178.3,0.06]
[1755632793480,7.2252408,178.33,178.3,0.76]
[1755632793780,7.2252408,178.34,178.31,0.7]
[1755632794274,7.9152408,178.34,178.3,0.06]
[1755632794454,7.2252408,178.33,178.3,0.06]
[1755632795760,7.9152408,178.34,178.3,0.06]
[1755632796162,7.2252408,178.34,178.3,0.75]
[1755632797580,7.2252408,178.33,178.3,0.75]
[1755632797754,7.2252408,178.34,178.3,0.75]
[1755632798161,0.69,178.36,178.31,0.69]
[1755632798162,7.2252408,178.36,178.31,0.69]
[1755632798459,0.03,178.38,178.33,7.2252408]
[1755632798672,0.03,178.38,178.34,7.9152408]
[1755632798871,0.03,178.38,178.35,0.14216157]
[1755632799081,0.03,178.38,178.36,41.03]
[1755632799396,0.03,178.38,178.36,40.34]
[1755632802183,0.03,178.38,178.37,0.83216157]
[1755632804658,0.03,178.38,178.37,0.14216157]
[1755632805258,0.03,178.38,178.37,0.83216157]
[1755632806289,0.03,178.38,178.37,8.05740237]
[1755632806459,0.03,178.38,178.37,0.83216157]
[1755632806660,0.03,178.38,178.37,0.14216157]
[1755632807384,0.03,178.38,178.37,40.46216157]
[1755632807995,0.03,178.38,178.37,41.15216157]
[1755632808301,0.03,178.38,178.37,40.46216157]
[1755632808994,0.03,178.38,178.37,41.15216157]
[1755632809201,0.03,178.38,178.37,48.37740237]
[1755632810587,0.03,178.38,178.37,41.15216157]
[1755632810808,7.2552408,178.38,178.34,0.69]
[1755632811102,7.2252408,178.37,178.35,40.32]
[1755632811273,7.2552408,178.38,178.35,40.32]
[1755632812201,0.03,178.38,178.36,0.69]
[1755632812900,0.03,178.38,178.36,0.14216157]
[1755632813206,0.03,178.38,178.36,0.83216157]
[1755632813501,7.9452408,178.38,178.35,40.32]
[1755632813711,7.2252408,178.37,178.35,40.32]
[1755632814091,7.2552408,178.38,178.35,40.32]
[1755632814294,0.03,178.38,178.35,40.32]
[1755632814495,0.03,178.38,178.35,41.01]
[1755632814709,0.03,178.38,178.36,0.69]
[1755632815111,0.03,178.38,178.37,0.69]
[1755632815319,0.03,178.38,178.35,40.32]
[1755632815693,0.03,178.38,178.36,0.69]
[1755632816325,0.03,178.38,178.37,0.69]
[1755632816490,0.03,178.38,178.37,0.83216157]
[1755632817788,0.03,178.38,178.37,8.05740237]
[1755632818227,0.03,178.38,178.37,21.65299638]
[1755632820989,0.03,178.38,178.37,53.25932031]
[1755632821319,0.03,178.38,178.37,53.8199527]
[1755632821517,0.03,178.38,178.37,47.65299638]
[1755632822409,0.03,178.38,178.37,87.95299638]
[1755632822587,0.03,178.38,178.37,61.95299638]
[1755632822812,0.03,178.38,178.37,13.73775558]
[1755632823015,0.03,178.38,178.37,54.03775558]
[1755632823428,7.9452408,178.38,178.34,13.59559401]
[1755632823721,7.9452408,178.38,178.35,40.3]
[1755632823722,7.9152408,178.37,178.35,40.3]
[1755632824127,7.9152408,178.36,178.31,13.59559401]
[1755632824440,7.2252408,178.36,178.33,40.3]
[1755632824626,0.74,178.38,178.33,40.3]
[1755632824940,7.2252408,178.36,178.33,40.3]
[1755632825535,7.9352408,178.36,178.33,40.3]
[1755632825722,7.2252408,178.35,178.33,40.3]
[1755632826639,7.9352408,178.34,178.3,0.06]
[1755632826830,7.2252408,178.31,178.3,0.06]
[1755632827335,7.9352408,178.31,178.3,0.06]
[1755632827525,26.0,178.29,178.28,0.06]
[1755632827716,33.2252408,178.29,178.28,0.06]
[1755632827910,33.9352408,178.29,178.28,0.06]
[1755632828429,11.9501099,178.29,178.28,0.06]
[1755632828631,26.0,178.28,178.26,0.06]
[1755632828951,26.0,178.24,178.23,0.06]
[1755632829127,26.0,178.22,178.17,0.06]
[1755632829448,39.59559401,178.22,178.17,0.06]
[1755632829744,37.2401099,178.2,178.17,0.06]
[1755632830417,37.9501099,178.2,178.17,0.06]
[1755632830715,37.2401099,178.2,178.17,0.06]
[1755632832231,26.0,178.2,178.17,0.06]
[1755632832426,37.2401099,178.2,178.17,0.06]
[1755632832935,37.9501099,178.2,178.17,0.06]
[1755632833251,11.9501099,178.2,178.17,0.06]
[1755632835334,52.2701099,178.2,178.17,0.06]
[1755632836348,41.03,178.2,178.17,0.06]
[1755632836560,52.2701099,178.2,178.17,0.06]
[1755632837268,13.59559401,178.19,178.17,0.06]
[1755632837556,26.0,178.16,178.15,0.06]
[1755632837750,77.5601099,178.16,178.15,0.06]
[1755632837971,67.05,178.16,178.15,0.06]
[1755632838155,78.2901099,178.16,178.15,0.06]
[1755632839251,13.59559401,178.15,178.14,0.06]
[1755632839450,13.59559401,178.15,178.09,0.06]
[1755632839451,26.0,178.12,178.09,0.06]
[1755632839673,11.2401099,178.1,178.09,0.06]
[1755632839854,51.6801099,178.1,178.09,0.06]
[1755632840054,52.3901099,178.1,178.09,0.06]
[1755632840568,26.0,178.08,178.03,0.1]
[1755632840752,11.2401099,178.04,178.03,0.1]
[1755632841373,51.6801099,178.04,178.03,0.1]
[1755632842480,52.3901099,178.04,178.03,0.1]
[1755632842866,51.6801099,178.04,178.03,0.1]
[1755632843176,40.44,178.04,178.03,0.1]
[1755632843880,51.7001099,178.04,178.03,0.1]
[1755632844057,11.2401099,178.04,178.03,0.1]
[1755632844265,51.8001099,178.04,178.03,0.1]
[1755632844977,52.5101099,178.04,178.03,0.1]
[1755632845174,51.8001099,178.04,178.03,0.1]
[1755632846663,11.2401099,178.05,178.03,0.82]
[1755632847356,11.2401099,178.04,178.03,0.1]
[1755632847752,40.58,178.06,178.03,0.82]
[1755632847987,11.2401099,178.04,178.03,0.82]
[1755632850565,11.2401099,178.04,178.03,0.1]
[1755632850886,11.2401099,178.04,178.03,0.82]
[1755632851497,11.2401099,178.05,178.03,0.82]
[1755632852001,11.2401099,178.04,178.03,0.82]
[1755632852287,11.2401099,178.05,178.03,0.82]
[1755632853000,11.2401099,178.04,178.03,0.82]
[1755632853393,0.71,178.14,178.04,0.72]
[1755632853588,11.2401099,178.1,178.04,11.9601099]
[1755632853901,11.2401099,178.09,178.05,0.72]
[1755632854105,11.2401099,178.09,178.03,11.3401099]
[1755632854282,11.2401099,178.08,178.06,0.66]
[1755632854674,11.2401099,178.07,178.03,0.76]
[1755632854977,11.2401099,178.04,178.03,0.1]
[1755632855574,11.2401099,178.06,178.03,0.76]
[1755632855776,78.0801099,178.07,178.03,0.76]
[1755632855973,78.0801099,178.07,178.04,0.66]
[1755632856179,11.2401099,178.06,178.04,0.66]
[1755632856994,11.2401099,178.09,178.05,0.66]
[1755632857170,52.1001099,178.09,178.03,11.3401099]
[1755632857497,52.1001099,178.09,178.06,0.66]
[1755632857906,40.86,178.09,178.06,0.66]
[1755632858407,40.86,178.09,178.04,11.2401099]
[1755632858609,26.0,178.12,178.07,11.9001099]
[1755632858903,52.1201099,178.13,178.08,0.66]
[1755632859107,26.0,178.12,178.08,0.66]
[1755632859611,26.0,178.12,178.03,13.69559401]
[1755632859612,0.7,178.11,178.05,0.14216157]
[1755632859795,11.2401099,178.11,178.05,0.66]
[1755632859987,26.0,178.12,178.06,11.2401099]
[1755632860309,131.0,178.15,178.1,11.2401099]
[1755632860509,198.08,178.15,178.1,0.66]
[1755632860709,11.2401099,178.14,178.04,13.73775558]
[1755632860914,11.2401099,178.11,178.07,0.66]
[1755632861115,37.2401099,178.12,178.07,0.66]
[1755632861584,11.9401099,178.11,178.05,11.9001099]
[1755632862086,11.9401099,178.11,178.03,0.1]
[1755632862087,11.2401099,178.07,178.03,0.1]
[1755632862497,11.2401099,178.07,178.04,0.66]
[1755632862696,11.2401099,178.08,178.04,0.66]
[1755632863093,172.76,178.1,178.04,0.66]
[1755632863422,11.2401099,178.09,178.04,0.66]
[1755632863596,11.9401099,178.09,178.04,0.66]
[1755632863798,11.9401099,178.08,178.03,0.1]
[1755632864189,11.2401099,178.04,178.03,0.1]
[1755632864389,11.9401099,178.04,178.03,0.1]
[1755632865204,37.9401099,178.04,178.03,0.1]
[1755632866097,11.9401099,178.04,178.03,0.1]
[1755632866504,37.9401099,178.04,178.03,0.1]
[1755632867114,37.2401099,178.04,178.03,0.1]
[1755632867319,37.9401099,178.04,178.03,0.1]
[1755632869406,66.69786548,178.04,178.03,0.1]
[1755632869829,26.0,178.01,177.99,0.06]
[1755632870036,16.85563724,178.08,177.99,0.06]
[1755632870037,78.2401099,178.0,177.99,0.06]
[1755632870238,11.2401099,177.94,177.91,0.66]
[1755632870400,41.0,177.95,177.91,0.66]
[1755632870597,11.2401099,177.97,177.92,11.2401099]
[1755632870824,67.02,177.98,177.93,0.66]
[1755632871127,26.0,177.98,177.94,0.66]
[1755632871420,11.2401099,177.97,177.95,0.66]
[1755632872016,37.2401099,177.98,177.95,0.66]
[1755632872812,52.2601099,177.99,177.93,11.2401099]
[1755632873003,52.2601099,177.99,177.94,0.66]
[1755632873202,11.2401099,177.97,177.94,0.66]
[1755632873832,11.2401099,177.98,177.95,0.66]
[1755632874202,37.2401099,178.01,177.96,0.66]
[1755632874814,37.2401099,178.01,177.97,0.66]
[1755632875125,52.2201099,178.02,177.98,0.66]
[1755632875329,52.2201099,178.02,177.99,0.66]
[1755632875628,26.0,178.03,178.0,0.66]
[1755632875629,37.2401099,178.03,178.0,0.66]
[1755632875833,37.2401099,178.03,177.98,0.66]
[1755632876137,37.2401099,178.03,177.99,0.66]
[1755632877009,11.2401099,178.03,177.99,0.66]
[1755632878113,11.2401099,178.03,177.97,11.2401099]
[1755632878319,11.2401099,178.02,177.97,0.66]
[1755632878517,11.2401099,177.98,177.91,13.59559401]
[1755632878736,11.2401099,177.96,177.89,16.891416]
[1755632878931,0.7,177.98,177.9,11.9001099]
[1755632879153,11.2401099,177.98,177.93,11.2401099]
[1755632879316,11.2401099,177.98,177.95,0.06]
[1755632879626,11.2401099,177.96,177.95,0.06]
[1755632879831,11.2401099,177.97,177.95,0.06]
[1755632880425,11.2401099,177.98,177.95,0.72]
[1755632880635,0.7,178.03,177.97,11.2401099]
[1755632880806,11.2401099,178.04,177.98,0.66]
[1755632881010,11.2401099,178.03,177.98,0.66]
[1755632881450,11.2401099,177.99,177.95,0.06]
[1755632881938,11.9401099,177.99,177.95,0.06]
[1755632882115,11.2401099,177.99,177.95,0.72]
[1755632882312,11.2401099,177.97,177.95,0.06]
[1755632882948,11.2401099,177.96,177.95,0.06]
[1755632883269,11.9401099,177.96,177.95,0.06]
[1755632884173,11.2401099,177.96,177.95,0.06]
[1755632884965,11.5782099,177.97,177.95,0.06]
[1755632885373,11.2401099,177.96,177.95,0.06]
[1755632885551,11.5782099,177.97,177.95,0.06]
[1755632886389,0.3381,177.97,177.95,0.06]
[1755632886743,11.5782099,177.97,177.95,0.06]
[1755632887047,11.9201099,177.96,177.95,0.06]
[1755632887566,37.9201099,177.96,177.95,0.06]
[1755632887962,37.2401099,177.96,177.95,0.06]
[1755632888163,37.9201099,177.96,177.95,0.06]
[1755632888466,37.2401099,177.96,177.95,0.06]
[1755632888678,26.0,177.96,177.95,0.06]
[1755632888974,37.2401099,177.96,177.95,0.06]
[1755632889182,37.9201099,177.96,177.95,0.06]
[1755632890161,55.43190357,177.96,177.95,0.06]
[1755632890584,29.43190357,177.96,177.95,0.06]
[1755632891100,55.289742,177.96,177.95,0.06]
[1755632891303,37.2401099,177.96,177.95,0.06]
[1755632891493,78.3001099,177.96,177.95,0.06]
[1755632892014,26.0,177.96,177.95,0.06]
[1755632892302,37.2401099,177.96,177.95,0.06]
[1755632892477,26.0,177.96,177.95,0.06]
[1755632892682,0.3381,177.97,177.95,0.76]
[1755632892887,26.3381,177.97,177.96,0.7]
[1755632893804,26.0,177.97,177.96,0.7]
[1755632893973,52.3001099,178.0,177.96,0.7]
[1755632894175,11.2401099,178.01,177.96,0.7]
[1755632894369,11.2401099,178.02,177.97,0.7]
[1755632894702,26.0,177.99,177.98,0.7]
[1755632895086,11.2401099,178.04,177.98,11.9401099]
[1755632895392,0.03,178.05,177.98,11.9401099]
[1755632895393,11.2401099,178.03,177.98,0.7]
[1755632895606,11.2401099,178.03,177.99,0.7]
[1755632895809,11.2401099,178.01,177.96,0.7]
[1755632896314,11.2401099,178.01,177.97,0.7]
[1755632897878,11.2401099,178.0,177.95,0.06]
[1755632898113,11.2401099,177.99,177.95,0.06]
[1755632898295,11.2401099,177.98,177.95,0.06]
[1755632898974,11.2401099,177.96,177.95,0.06]
[1755632899177,37.9201099,177.96,177.95,0.06]
[1755632900900,37.2401099,177.96,177.95,0.06]
[1755632901887,26.0,177.96,177.95,0.06]
[1755632902082,37.2401099,177.96,177.95,0.06]
[1755632903975,37.9201099,177.96,177.95,0.06]
[1755632904177,38.2582099,177.96,177.95,0.06]
[1755632904903,12.2582099,177.96,177.95,0.06]
[1755632905104,37.5782099,177.96,177.95,0.06]
[1755632906807,0.3381,177.96,177.95,0.76]
[1755632906985,0.3381,177.96,177.95,12.14227147]
[1755632907484,40.96,178.03,177.96,13.73775558]
[1755632907485,52.2001099,178.03,177.96,13.73775558]
[1755632907697,11.2401099,178.04,177.99,11.2401099]
[1755632907898,11.2701099,178.05,177.99,11.2401099]
[1755632908215,11.2701099,178.05,178.0,0.7]
[1755632908414,11.2701099,178.05,178.01,0.7]
[1755632908610,11.2701099,178.05,177.99,11.2401099]
[1755632908914,11.2701099,178.05,177.96,13.59559401]
[1755632909117,11.2401099,178.04,177.99,0.7]
[1755632909585,11.2401099,178.04,178.0,0.7]
[1755632909783,11.2701099,178.05,178.01,0.7]
[1755632910092,11.2701099,178.05,178.02,0.7]
[1755632910479,0.03,178.05,178.0,11.2401099]
[1755632910680,11.2701099,178.05,178.01,0.7]
[1755632910880,11.2701099,178.05,178.0,11.2401099]
[1755632911077,0.03,178.05,178.02,0.7]
[1755632911301,0.03,178.05,178.04,11.2401099]
[1755632911494,0.03,178.05,178.03,0.84216157]
[1755632911788,0.03,178.05,178.04,0.7]
[1755632912118,0.03,178.05,178.04,11.9401099]
[1755632912407,0.03,178.05,178.04,25.67786548]
[1755632914880,0.03,178.05,178.04,36.94797548]
[1755632915080,0.03,178.05,178.04,25.70786558]
[1755632915289,0.03,178.05,178.04,36.94797548]
[1755632916686,0.03,178.05,178.04,25.67786548]
[1755632916883,0.03,178.05,178.02,11.27011]
[1755632917105,0.03,178.05,178.01,11.9501099]
[1755632917514,0.73,178.05,178.0,63.3602199]
[1755632917719,0.7,178.04,178.0,52.12011]
[1755632917884,0.03,178.05,178.0,52.83011]
[1755632918084,11.9701099,178.05,178.0,52.83011]
[1755632918425,11.9701099,178.05,178.0,41.59]
[1755632918711,11.2401099,178.03,178.0,40.88]
[1755632918910,11.9401099,178.04,178.0,41.59]
[1755632919220,11.2401099,178.03,178.0,40.88]
[1755632919587,0.7,178.02,177.97,11.2401099]
[1755632919913,0.7,178.02,177.98,0.71]
[1755632920110,11.9401099,178.02,177.98,0.71]
[1755632920527,11.2401099,178.0,177.96,41.59]
[1755632921030,11.2401099,178.01,177.97,0.71]
[1755632921236,11.2401099,178.02,177.98,0.71]
[1755632921436,11.2401099,178.03,177.97,11.2401099]
[1755632921618,37.2701099,178.05,177.99,11.9501099]
[1755632922210,37.2701099,178.05,177.97,17.03072557]
[1755632922211,11.2701099,178.05,178.0,11.9501099]
[1755632922543,0.03,178.05,178.01,0.71]
[1755632922722,11.2701099,178.05,178.01,0.71]
[1755632923317,11.2701099,178.05,177.99,11.2401099]
[1755632923318,0.03,178.05,178.02,11.9501099]
[1755632923652,0.03,178.05,178.04,26.0]
[1755632923948,0.03,178.05,178.04,37.2401099]
[1755632924135,0.03,178.05,178.04,51.68786548]
[1755632926368,0.03,178.05,178.04,37.27011]
[1755632926640,0.03,178.05,178.04,26.0]
[1755632927111,0.03,178.05,178.04,37.9501099]
[1755632927530,0.03,178.05,178.04,38.09227147]
[1755632927926,0.03,178.05,178.04,26.85216157]
[1755632928142,0.03,178.05,178.04,38.09227147]
[1755632928346,0.03,178.05,178.04,26.85216157]
[1755632928531,0.03,178.05,178.04,38.09227147]
[1755632928716,0.03,178.05,178.04,37.2401099]
[1755632929844,0.03,178.05,178.02,37.2401099]
[1755632930140,0.03,178.05,178.03,11.9501099]
[1755632930443,0.03,178.05,178.02,37.2401099]
[1755632930958,11.9701099,178.05,178.01,40.74]
[1755632931254,0.03,178.05,178.02,11.9501099]
[1755632931949,0.03,178.05,178.02,0.71]
[1755632932251,0.7,178.04,178.0,51.9801099]
[1755632933047,0.03,178.05,178.0,52.6901099]
[1755632933352,0.73,178.05,178.0,52.6901099]
[1755632933947,0.7,178.04,178.0,52.6901099]
[1755632934321,0.03,178.05,178.0,52.6901099]
[1755632934551,0.03,178.05,178.01,0.71]
[1755632934752,0.03,178.05,178.03,11.2401099]
[1755632935244,0.03,178.05,178.03,11.9501099]
[1755632935444,0.03,178.05,178.04,11.2401099]
[1755632935649,0.03,178.05,178.04,12.09227147]
[1755632936020,0.03,178.05,178.04,25.68786548]
[1755632936433,0.03,178.05,178.03,11.2401099]
[1755632936646,0.03,178.05,178.02,40.7]
[1755632936853,0.03,178.05,178.02,52.6501099]
[1755632937022,0.03,178.05,178.03,11.9501099]
[1755632937940,0.03,178.05,178.03,0.71]
[1755632938132,0.03,178.05,178.02,40.7]
[1755632938457,0.03,178.05,178.02,41.41]
[1755632938622,0.03,178.05,178.03,12.09227147]
[1755632938838,0.03,178.05,178.04,11.38227147]
[1755632939030,0.03,178.05,178.04,12.09227147]
[1755632939432,0.03,178.05,178.04,25.68786548]
[1755632939632,0.03,178.05,178.0,11.24011]
[1755632939831,0.03,178.05,178.02,0.14216157]
[1755632940030,0.03,178.05,178.01,52.6501099]
[1755632940625,0.03,178.05,178.04,11.2401099]
[1755632940828,0.03,178.05,178.04,65.67786548]
[1755632941029,0.03,178.05,178.04,92.38786548]
[1755632941224,0.03,178.08,178.05,13.73775558]
[1755632941429,0.03,178.08,178.07,24.97786548]
[1755632941649,0.03,178.08,178.07,65.71786548]
[1755632941853,0.03,178.08,178.07,92.42786548]
[1755632942235,0.03,178.08,178.07,72.04363455]
[1755632942435,0.03,178.19,178.1,39.73775558]
[1755632942651,0.03,178.19,178.1,91.71786548]
[1755632942862,0.03,178.19,178.1,92.42786548]
[1755632943226,0.73,178.19,178.1,92.42786548]
[1755632943825,0.03,178.19,178.1,92.42786548]
[1755632944058,11.9401099,178.18,178.1,92.42786548]
[1755632944228,0.69,178.16,178.1,92.42786548]
[1755632945333,0.69,178.16,178.1,80.47775558]
[1755632945539,0.69,178.16,178.1,91.71786548]
[1755632946064,11.9301099,178.16,178.1,63.36238147]
[1755632946263,11.9301099,178.16,178.1,22.62238147]
[1755632946460,11.9301099,178.16,178.1,63.32238147]
[1755632946643,11.9301099,178.16,178.1,52.08227147]
[1755632946842,0.69,178.16,178.1,52.75227147]
[1755632947145,0.69,178.16,178.1,66.34786548]
[1755632947550,11.9301099,178.18,178.1,66.34786548]
[1755632948163,11.9301099,178.17,178.1,66.34786548]
[1755632948337,0.69,178.15,178.1,65.67786548]
[1755632948749,0.69,178.15,178.1,40.84216157]
[1755632948963,0.69,178.15,178.1,52.08227147]
[1755632950591,0.69,178.14,178.1,51.9401099]
[1755632953263,0.69,178.14,178.1,51.8801099]
[1755632954501,0.69,178.14,178.1,40.64]
[1755632954778,0.69,178.14,178.1,51.8801099]
[1755632955665,0.72,178.11,178.1,40.64]
[1755632956070,0.72,178.11,178.06,16.880961]
[1755632956071,11.9601099,178.11,178.06,16.880961]
[1755632956379,0.69,178.1,178.05,11.2401099]
[1755632956689,0.69,178.09,178.06,40.62]
[1755632956874,0.72,178.11,178.07,11.2401099]
[1755632957084,0.03,178.11,178.08,51.8601099]
[1755632957271,0.03,178.11,178.08,40.62]
[1755632957581,0.03,178.11,178.1,11.2401099]
[1755632957761,0.03,178.11,178.1,51.8401099]
[1755632957967,0.03,178.11,178.1,40.6]
[1755632958580,0.72,178.11,178.1,40.6]
[1755632959489,0.03,178.11,178.1,40.6]
[1755632960579,11.9601099,178.11,178.1,40.6]
[1755632960781,11.9601099,178.11,178.05,11.3001099]
[1755632961077,11.9301099,178.1,178.06,40.62]
[1755632961275,0.69,178.09,178.06,40.62]
[1755632961986,0.72,178.11,178.06,51.8601099]
[1755632962180,0.69,178.1,178.06,40.62]
[1755632962809,0.03,178.11,178.07,12.05227147]
[1755632963103,0.03,178.11,178.08,52.5301099]
[1755632963818,0.03,178.11,178.09,0.67]
[1755632963994,0.03,178.11,178.09,11.9101099]
[1755632964305,0.03,178.11,178.09,0.67]
[1755632964505,0.03,178.11,178.08,40.62]
[1755632965308,0.72,178.11,178.08,40.62]
[1755632967017,0.03,178.11,178.08,52.5301099]
[1755632967213,0.03,178.11,178.08,41.29]
[1755632967398,0.03,178.11,178.09,11.9101099]
[1755632967596,0.03,178.11,178.1,40.6]
[1755632967795,0.03,178.11,178.1,41.27]
[1755632968111,0.03,178.11,178.1,52.5101099]
[1755632968626,0.03,178.11,178.1,41.27]
[1755632968794,0.03,178.11,178.1,52.5101099]
[1755632969111,0.03,178.11,178.1,41.27]
[1755632969896,0.03,178.11,178.1,40.6]
[1755632971118,11.9601099,178.11,178.07,16.880011]
[1755632971301,11.9301099,178.1,178.08,40.56]
[1755632971622,11.9301099,178.1,178.07,40.56]
[1755632971815,0.69,178.1,178.07,40.56]
[1755632972325,0.69,178.09,178.07,40.54]
[1755632972488,0.69,178.09,178.05,0.06]
[1755632972691,0.69,178.09,178.05,40.62]
[1755632972896,7.92807435,178.08,178.05,40.62]
[1755632973104,0.69,178.07,178.05,40.62]
[1755632973310,7.23807435,178.08,178.05,40.62]
[1755632973504,7.92807435,178.08,178.05,40.62]
[1755632974302,11.95109628,178.08,178.05,40.62]
[1755632974926,11.26109628,178.09,178.05,41.3]
[1755632976028,11.26109628,178.1,178.05,41.3]
[1755632976228,11.91109628,178.1,178.05,41.3]
[1755632976529,0.03,178.11,178.07,11.26109628]
[1755632976854,0.03,178.11,178.08,41.24]
[1755632977133,0.03,178.11,178.08,40.56]
[1755632977426,0.68,178.11,178.08,40.56]
[1755632977731,0.68,178.11,178.05,0.06]
[1755632977732,11.26109628,178.09,178.05,0.06]
[1755632978026,11.26109628,178.08,178.05,40.62]
[1755632978403,11.91109628,178.07,178.05,0.06]
[1755632978612,0.65,178.07,178.05,0.06]
[1755632978825,11.26109628,178.08,178.05,0.06]
[1755632979325,11.91109628,178.1,178.05,11.32109628]
[1755632979529,11.91109628,178.1,178.06,0.68]
[1755632979730,15.06948572,178.11,178.06,11.94109628]
[1755632980136,15.71948572,178.11,178.06,0.68]
[1755632980335,15.06948572,178.11,178.06,0.68]
[1755632980628,15.06948572,178.11,178.05,0.06]
[1755632980629,11.91109628,178.1,178.05,0.06]
[1755632981137,11.91109628,178.1,178.05,0.74]
[1755632981435,11.91109628,178.1,178.06,0.68]
[1755632981923,3.80838944,178.11,178.07,11.94109628]
[1755632982134,0.03,178.11,178.09,11.26109628]
[1755632982323,0.03,178.11,178.08,41.24]
[1755632982324,0.03,178.11,178.1,11.94109628]
[1755632982809,0.03,178.11,178.1,25.67885186]
[1755632983628,0.03,178.11,178.08,11.26109628]
[1755632983829,0.03,178.11,178.07,40.58]
[1755632984015,0.03,178.11,178.08,11.94109628]
[1755632984416,0.03,178.11,178.08,11.26109628]
[1755632984724,0.03,178.11,178.08,11.94109628]
[1755632985234,0.03,178.11,178.1,11.26109628]
[1755632985432,0.03,178.11,178.1,24.99885186]
[1755632985849,0.03,178.11,178.1,66.25885186]
[1755632986360,0.03,178.11,178.1,52.52109628]
[1755632986639,0.03,178.11,178.1,51.84109628]
[1755632986847,0.03,178.11,178.1,52.52109628]
[1755632987858,0.03,178.11,178.1,40.58]
[1755632988028,0.03,178.11,178.08,11.261096]
[1755632988254,0.03,178.11,178.08,40.58]
[1755632988569,0.03,178.11,178.1,11.26109628]
[1755632989864,0.03,178.11,178.09,11.26109628]
[1755632990047,0.03,178.11,178.1,11.26109628]
[1755632990655,0.03,178.11,178.1,25.67885186]
[1755632992552,0.03,178.11,178.1,51.67885186]
[1755632993171,0.03,178.11,178.1,37.94109628]
[1755632993478,0.03,178.11,178.1,37.26109628]
[1755632994051,0.03,178.11,178.1,37.94109628]
[1755632995068,0.03,178.11,178.1,78.46109628]
[1755632995249,0.03,178.11,178.1,77.78109628]
[1755632995451,0.68,178.11,178.07,24.99885186]
[1755632995657,0.68,178.11,178.08,40.52]
[1755632996286,0.03,178.11,178.08,51.78109628]
[1755632996470,0.03,178.11,178.08,48.43516327]
[1755632997355,0.03,178.11,178.08,40.52]
[1755632997553,0.65,178.1,178.08,40.52]
[1755632998150,0.03,178.11,178.08,40.52]
[1755632998346,0.68,178.11,178.08,40.52]
[1755632998646,7.23516327,178.09,178.05,0.06]
[1755632998879,0.65,178.08,178.05,0.06]
[1755632999388,7.88516327,178.1,178.05,0.06]
[1755632999576,0.65,178.09,178.05,0.06]
[1755633000289,0.03,178.11,178.05,26.20216157]
[1755633000458,0.65,178.09,178.05,0.06]